[Event "Early-Titled-Tuesday-Blitz-November-28-2023"]
[Site "Chess.com"]
[Date "2023.11.28"]
[Round "4"]
[White "abelmat"]
[Black "GAusal"]
[Result "0-1"]
[WhiteElo "1955"]
[BlackElo "2293"]
[TimeControl "180+1"]
[EndTime "8:36:55 PST"]
[Termination "GAusal won by resignation"]

1. d4 {[%clk 0:03:00.9]} 1... d5 {[%clk 0:02:59.5]} 2. c4 {[%clk 0:03:00.6]}
2... c6 {[%clk 0:02:59]} 3. Nf3 {[%clk 0:03:00.7]} 3... dxc4 {[%clk 0:02:58.4]}
4. e3 {[%clk 0:03:00.7]} 4... b5 {[%clk 0:02:55.5]} 5. a4 {[%clk 0:03:00.4]}
5... e6 {[%clk 0:02:52.8]} 6. b3 {[%clk 0:02:54.1]} 6... Bb4+ {[%clk 0:02:48.4]}
7. Bd2 {[%clk 0:02:50.3]} 7... Bxd2+ {[%clk 0:02:45.7]} 8. Nbxd2 {[%clk
0:02:50]} 8... c3 {[%clk 0:02:42.9]} 9. Ne4 {[%clk 0:02:43]} 9... b4 {[%clk
0:02:40.4]} 10. Bd3 {[%clk 0:02:37]} 10... Nf6 {[%clk 0:02:36.5]} 11. O-O {[%clk
0:02:35.9]} 11... Nxe4 {[%clk 0:02:32.9]} 12. Bxe4 {[%clk 0:02:35.8]} 12... a5
{[%clk 0:02:28.7]} 13. Ne5 {[%clk 0:02:30.5]} 13... O-O {[%clk 0:02:20.3]} 14.
Nxc6 {[%clk 0:02:27.7]} 14... Nxc6 {[%clk 0:02:17.9]} 15. Bxc6 {[%clk
0:02:28.6]} 15... Ra7 {[%clk 0:02:13.9]} 16. Rc1 {[%clk 0:02:18.2]} 16... Bb7
{[%clk 0:02:06.6]} 17. Bxb7 {[%clk 0:02:13.1]} 17... Rxb7 {[%clk 0:02:06.1]} 18.
Qf3 {[%clk 0:02:13.1]} 18... Qb6 {[%clk 0:02:01.4]} 19. h4 {[%clk 0:02:12.2]}
19... Rd7 {[%clk 0:01:57.7]} 20. h5 {[%clk 0:02:11.9]} 20... h6 {[%clk
0:01:57.2]} 21. Rfe1 {[%clk 0:02:10.1]} 21... Rd5 {[%clk 0:01:50.3]} 22. g3
{[%clk 0:02:04.4]} 22... Rfd8 {[%clk 0:01:46.8]} 23. Kg2 {[%clk 0:02:03]} 23...
e5 {[%clk 0:01:44.1]} 24. dxe5 {[%clk 0:01:57.4]} 24... Qe6 {[%clk 0:01:40.4]}
25. Red1 {[%clk 0:01:55.2]} 25... Rxd1 {[%clk 0:01:30.7]} 26. Rxd1 {[%clk
0:01:54.7]} 26... Rxd1 {[%clk 0:01:27.7]} 27. Qxd1 {[%clk 0:01:54.7]} 27... Qc6+
{[%clk 0:01:23.7]} 28. Kf1 {[%clk 0:01:43.5]} 28... c2 {[%clk 0:01:20.3]} 29.
Qc1 {[%clk 0:01:42.4]} 29... Qc3 {[%clk 0:01:18.8]} 30. Ke2 {[%clk 0:01:37.9]}
30... Qxb3 {[%clk 0:01:16.6]} 31. Kd2 {[%clk 0:01:37.9]} 31... Qc3+ {[%clk
0:01:16.7]} 32. Ke2 {[%clk 0:01:38]} 32... b3 {[%clk 0:01:17.1]} 33. e6 {[%clk
0:01:29.4]} 33... fxe6 {[%clk 0:01:12.6]} 0-1

[Event "Early-Titled-Tuesday-Blitz-November-28-2023"]
[Site "Chess.com"]
[Date "2023.11.28"]
[Round "4"]
[White "Kislov_Oleg"]
[Black "Suspenser17"]
[Result "1-0"]
[WhiteElo "2575"]
[BlackElo "2361"]
[TimeControl "180+1"]
[EndTime "8:36:59 PST"]
[Termination "Kislov_Oleg won by resignation"]

1. d4 {[%clk 0:03:00.9]} 1... d5 {[%clk 0:03:00.9]} 2. Bf4 {[%clk 0:03:00.3]}
2... c5 {[%clk 0:03:00.7]} 3. c3 {[%clk 0:02:57]} 3... Nc6 {[%clk 0:03:01.5]} 4.
e3 {[%clk 0:02:56.9]} 4... Qb6 {[%clk 0:02:59]} 5. Qb3 {[%clk 0:02:55.2]} 5...
c4 {[%clk 0:02:58.8]} 6. Qxb6 {[%clk 0:02:53.3]} 6... axb6 {[%clk 0:02:59]} 7.
Nd2 {[%clk 0:02:51.9]} 7... b5 {[%clk 0:02:57.5]} 8. e4 {[%clk 0:02:47.4]} 8...
e6 {[%clk 0:02:55.1]} 9. Ngf3 {[%clk 0:02:21.8]} 9... b4 {[%clk 0:02:54.3]} 10.
Ne5 {[%clk 0:02:10.4]} 10... Nxe5 {[%clk 0:02:49.7]} 11. Bxe5 {[%clk 0:02:09.4]}
11... Nf6 {[%clk 0:02:45.5]} 12. Bxf6 {[%clk 0:02:05.8]} 12... gxf6 {[%clk
0:02:45.4]} 13. exd5 {[%clk 0:02:05.7]} 13... exd5 {[%clk 0:02:46.3]} 14. Be2
{[%clk 0:02:05.3]} 14... b5 {[%clk 0:02:46]} 15. Bf3 {[%clk 0:01:59.8]} 15...
Be6 {[%clk 0:02:45.3]} 16. O-O {[%clk 0:01:55]} 16... bxc3 {[%clk 0:02:44.9]}
17. bxc3 {[%clk 0:01:55]} 17... b4 {[%clk 0:02:45.5]} 18. Nxc4 {[%clk
0:01:50.4]} 18... Rc8 {[%clk 0:02:39.9]} 19. Nb6 {[%clk 0:01:49]} 19... Rxc3
{[%clk 0:02:31.5]} 20. Bxd5 {[%clk 0:01:44.7]} 20... Bd6 {[%clk 0:02:17.9]} 21.
Rfe1 {[%clk 0:01:43]} 21... O-O {[%clk 0:02:04.1]} 22. Bxe6 {[%clk 0:01:41]}
22... fxe6 {[%clk 0:02:05]} 23. Rxe6 {[%clk 0:01:38.5]} 23... Bc7 {[%clk
0:01:47.1]} 24. Nd5 {[%clk 0:01:33.7]} 24... Rc2 {[%clk 0:01:47.1]} 25. Nxf6+
{[%clk 0:01:23.2]} 25... Kf7 {[%clk 0:01:44.1]} 26. Ra6 {[%clk 0:01:23.1]} 26...
Rd8 {[%clk 0:01:33.7]} 27. Ng4 {[%clk 0:01:08.7]} 27... Rxd4 {[%clk 0:01:29.9]}
28. Ne3 {[%clk 0:01:08.8]} 28... Rb2 {[%clk 0:01:23.1]} 29. Ra7 {[%clk
0:01:08.4]} 29... Rd7 {[%clk 0:01:20.9]} 30. Rc1 {[%clk 0:01:07]} 30... Ke6
{[%clk 0:01:17.1]} 31. Raxc7 {[%clk 0:01:05.4]} 31... Rxc7 {[%clk 0:01:16.9]}
32. Rxc7 {[%clk 0:01:05.2]} 1-0

[Event "Early-Titled-Tuesday-Blitz-November-28-2023"]
[Site "Chess.com"]
[Date "2023.11.28"]
[Round "4"]
[White "jeetjain"]
[Black "LiemLe"]
[Result "0-1"]
[WhiteElo "2545"]
[BlackElo "3127"]
[TimeControl "180+1"]
[EndTime "8:37:11 PST"]
[Termination "LiemLe won by resignation"]

1. d4 {[%clk 0:02:59.8]} 1... Nf6 {[%clk 0:02:59.5]} 2. Nf3 {[%clk 0:02:59.6]}
2... d5 {[%clk 0:02:58.3]} 3. Bf4 {[%clk 0:02:58.5]} 3... c5 {[%clk 0:02:57.4]}
4. e3 {[%clk 0:02:58.1]} 4... Nc6 {[%clk 0:02:57.6]} 5. Nbd2 {[%clk 0:02:58.3]}
5... e6 {[%clk 0:02:57.3]} 6. c3 {[%clk 0:02:57.7]} 6... cxd4 {[%clk 0:02:57.8]}
7. exd4 {[%clk 0:02:57.8]} 7... Nh5 {[%clk 0:02:57.9]} 8. Bg5 {[%clk 0:02:55.8]}
8... f6 {[%clk 0:02:57.8]} 9. Bh4 {[%clk 0:02:55.4]} 9... Bd6 {[%clk 0:02:55.1]}
10. Bg3 {[%clk 0:02:46.5]} 10... Nxg3 {[%clk 0:02:51.3]} 11. hxg3 {[%clk
0:02:44.9]} 11... e5 {[%clk 0:02:52.2]} 12. dxe5 {[%clk 0:02:38.9]} 12... fxe5
{[%clk 0:02:53.1]} 13. Bb5 {[%clk 0:02:38.5]} 13... O-O {[%clk 0:02:40.6]} 14.
Qc2 {[%clk 0:02:31.2]} 14... e4 {[%clk 0:02:30.7]} 15. Nd4 {[%clk 0:01:48.2]}
15... Nxd4 {[%clk 0:02:19.4]} 16. cxd4 {[%clk 0:01:49.1]} 16... Qb6 {[%clk
0:02:14.4]} 17. Qb3 {[%clk 0:01:48.6]} 17... Qxd4 {[%clk 0:02:14]} 18. O-O-O
{[%clk 0:01:48.2]} 18... Bf5 {[%clk 0:02:04.7]} 19. Nc4 {[%clk 0:01:32.5]} 19...
Qc5 {[%clk 0:01:58.4]} 20. Rxd5 {[%clk 0:01:09.9]} 20... Qxd5 {[%clk 0:01:59.3]}
21. Rd1 {[%clk 0:00:59.8]} 21... Qc5 {[%clk 0:01:44.6]} 22. Rxd6 {[%clk
0:00:29.4]} 22... a6 {[%clk 0:01:44.6]} 23. Kb1 {[%clk 0:00:09.5]} 23... Qxb5
{[%clk 0:01:42.5]} 0-1

[Event "Early-Titled-Tuesday-Blitz-November-28-2023"]
[Site "Chess.com"]
[Date "2023.11.28"]
[Round "4"]
[White "defenceboy"]
[Black "mbachez"]
[Result "1-0"]
[WhiteElo "2851"]
[BlackElo "2569"]
[TimeControl "180+1"]
[EndTime "8:37:18 PST"]
[Termination "defenceboy won by resignation"]

1. d4 {[%clk 0:03:00.9]} 1... d5 {[%clk 0:02:55.1]} 2. c4 {[%clk 0:03:00.9]}
2... c6 {[%clk 0:02:53.4]} 3. Nf3 {[%clk 0:03:00.5]} 3... Nf6 {[%clk 0:02:53.6]}
4. e3 {[%clk 0:03:00.4]} 4... Bg4 {[%clk 0:02:50.8]} 5. h3 {[%clk 0:02:59.8]}
5... Bxf3 {[%clk 0:02:50.4]} 6. Qxf3 {[%clk 0:02:59.7]} 6... e6 {[%clk
0:02:50.8]} 7. Nc3 {[%clk 0:03:00.3]} 7... Nbd7 {[%clk 0:02:50.6]} 8. Bd2 {[%clk
0:03:00.1]} 8... Be7 {[%clk 0:02:50]} 9. g4 {[%clk 0:02:59.4]} 9... O-O {[%clk
0:02:42.4]} 10. g5 {[%clk 0:02:59]} 10... Ne8 {[%clk 0:02:41.6]} 11. h4 {[%clk
0:02:59.2]} 11... a6 {[%clk 0:02:38.1]} 12. cxd5 {[%clk 0:02:57.6]} 12... cxd5
{[%clk 0:02:34.2]} 13. Bd3 {[%clk 0:02:58.5]} 13... Nd6 {[%clk 0:02:32.3]} 14.
O-O-O {[%clk 0:02:57.6]} 14... b5 {[%clk 0:02:31.1]} 15. Kb1 {[%clk 0:02:57.7]}
15... b4 {[%clk 0:02:30.2]} 16. Ne2 {[%clk 0:02:57.2]} 16... a5 {[%clk
0:02:25.7]} 17. Qg3 {[%clk 0:02:54.1]} 17... Nc4 {[%clk 0:02:24.7]} 18. Bc1
{[%clk 0:02:36.4]} 18... a4 {[%clk 0:02:23.7]} 19. g6 {[%clk 0:02:25.7]} 19...
fxg6 {[%clk 0:02:13.5]} 20. h5 {[%clk 0:02:25.7]} 20... g5 {[%clk 0:02:07.7]}
21. h6 {[%clk 0:02:16.4]} 21... g6 {[%clk 0:02:06.9]} 22. Qg4 {[%clk 0:02:13.7]}
22... Qb6 {[%clk 0:02:03.5]} 23. Nf4 {[%clk 0:02:10]} 23... gxf4 {[%clk
0:00:34.7]} 24. Bxg6 {[%clk 0:02:08.8]} 24... Bf6 {[%clk 0:00:34.3]} 25. Rdg1
{[%clk 0:01:46.4]} 25... hxg6 {[%clk 0:00:19.5]} 26. Qxg6+ {[%clk 0:01:47.3]}
26... Kh8 {[%clk 0:00:19.8]} 27. h7 {[%clk 0:01:47.8]} 27... Qd8 {[%clk
0:00:17.8]} 28. Qg8+ {[%clk 0:01:47.9]} 1-0

[Event "Early-Titled-Tuesday-Blitz-November-28-2023"]
[Site "Chess.com"]
[Date "2023.11.28"]
[Round "4"]
[White "HanSchut"]
[Black "katharinareinecke"]
[Result "0-1"]
[WhiteElo "2284"]
[BlackElo "1994"]
[TimeControl "180+1"]
[EndTime "8:37:21 PST"]
[Termination "katharinareinecke won by resignation"]

1. e4 {[%clk 0:02:58.4]} 1... c6 {[%clk 0:02:59.4]} 2. d4 {[%clk 0:02:57.9]}
2... d5 {[%clk 0:02:56.7]} 3. exd5 {[%clk 0:02:58.8]} 3... cxd5 {[%clk
0:02:56.4]} 4. c4 {[%clk 0:02:59.7]} 4... Nf6 {[%clk 0:02:54.1]} 5. Nc3 {[%clk
0:03:00.6]} 5... e6 {[%clk 0:02:53.8]} 6. Nf3 {[%clk 0:03:00.7]} 6... Bb4 {[%clk
0:02:50.6]} 7. cxd5 {[%clk 0:03:01]} 7... Nxd5 {[%clk 0:02:49.6]} 8. Qc2 {[%clk
0:03:01.7]} 8... O-O {[%clk 0:02:31.1]} 9. Bd3 {[%clk 0:03:00.4]} 9... g6 {[%clk
0:02:29.1]} 10. Bh6 {[%clk 0:02:57.7]} 10... Re8 {[%clk 0:02:26.1]} 11. h4
{[%clk 0:02:57.1]} 11... Nxc3 {[%clk 0:02:08.6]} 12. bxc3 {[%clk 0:02:56.5]}
12... Bf8 {[%clk 0:02:08.5]} 13. Bxf8 {[%clk 0:02:49.1]} 13... Rxf8 {[%clk
0:02:08.6]} 14. h5 {[%clk 0:02:50]} 14... Qf6 {[%clk 0:01:59.2]} 15. hxg6 {[%clk
0:02:33.6]} 15... fxg6 {[%clk 0:01:56.7]} 16. Ne5 {[%clk 0:02:26.8]} 16... Nd7
{[%clk 0:01:49.7]} 17. Ng4 {[%clk 0:02:25.6]} 17... Qf4 {[%clk 0:01:34.6]} 18.
Bxg6 {[%clk 0:02:07.6]} 18... Qxg4 {[%clk 0:01:27.2]} 19. Bxh7+ {[%clk 0:01:51]}
19... Kg7 {[%clk 0:01:27]} 20. Be4 {[%clk 0:01:34]} 20... Nf6 {[%clk 0:01:24.5]}
21. Bf3 {[%clk 0:01:33.2]} 21... Qg6 {[%clk 0:01:19.3]} 22. Qd2 {[%clk
0:01:15.3]} 22... Bd7 {[%clk 0:01:17.6]} 23. Bxb7 {[%clk 0:01:06.3]} 23... Rab8
{[%clk 0:01:17.3]} 24. Bf3 {[%clk 0:01:02.8]} 24... Rh8 {[%clk 0:01:16.9]} 25.
Rxh8 {[%clk 0:00:54.4]} 25... Rxh8 {[%clk 0:01:17.8]} 26. O-O-O {[%clk
0:00:50.9]} 26... Rb8 {[%clk 0:01:15.5]} 27. Qc2 {[%clk 0:00:50.7]} 27... Qxc2+
{[%clk 0:01:11.7]} 28. Kxc2 {[%clk 0:00:50.5]} 28... Ba4+ {[%clk 0:01:08.4]} 29.
Kd2 {[%clk 0:00:49.6]} 29... Bxd1 {[%clk 0:01:08.4]} 30. Kxd1 {[%clk 0:00:50.5]}
30... Rb2 {[%clk 0:01:06.8]} 0-1

[Event "Early-Titled-Tuesday-Blitz-November-28-2023"]
[Site "Chess.com"]
[Date "2023.11.28"]
[Round "4"]
[White "sofaceindisguise"]
[Black "Ramla2020"]
[Result "1-0"]
[WhiteElo "2806"]
[BlackElo "2564"]
[TimeControl "180+1"]
[EndTime "8:37:23 PST"]
[Termination "sofaceindisguise won by resignation"]

1. Nf3 {[%clk 0:02:57.5]} 1... d5 {[%clk 0:02:59.3]} 2. d4 {[%clk 0:02:58]} 2...
Nf6 {[%clk 0:02:57.9]} 3. c4 {[%clk 0:02:58.5]} 3... c6 {[%clk 0:02:57.4]} 4.
Nc3 {[%clk 0:02:58.5]} 4... g6 {[%clk 0:02:57.2]} 5. h4 {[%clk 0:02:57]} 5... h5
{[%clk 0:02:54.5]} 6. Bg5 {[%clk 0:02:51.8]} 6... Ne4 {[%clk 0:02:46.6]} 7. Qb3
{[%clk 0:02:42.1]} 7... Nxg5 {[%clk 0:02:43.5]} 8. Nxg5 {[%clk 0:02:43]} 8...
dxc4 {[%clk 0:02:42.7]} 9. Qxc4 {[%clk 0:02:43]} 9... e6 {[%clk 0:02:41.2]} 10.
e4 {[%clk 0:02:41.8]} 10... Be7 {[%clk 0:02:37.1]} 11. e5 {[%clk 0:02:40.3]}
11... b5 {[%clk 0:02:19]} 12. Qd3 {[%clk 0:02:36]} 12... Bxg5 {[%clk 0:02:16.2]}
13. hxg5 {[%clk 0:02:35.7]} 13... Qa5 {[%clk 0:02:12]} 14. Be2 {[%clk
0:02:29.4]} 14... b4 {[%clk 0:01:55.9]} 15. Ne4 {[%clk 0:02:19.3]} 15... Ba6
{[%clk 0:01:55.8]} 16. Nd6+ {[%clk 0:02:09.1]} 16... Ke7 {[%clk 0:01:50.7]} 17.
Qf3 {[%clk 0:02:08.7]} 17... Rf8 {[%clk 0:01:50.3]} 18. Qf6+ {[%clk 0:02:06.9]}
18... Kd7 {[%clk 0:01:50.1]} 19. Bxa6 {[%clk 0:02:04.5]} 19... Nxa6 {[%clk
0:01:49.3]} 20. O-O {[%clk 0:02:03.1]} 20... Nc7 {[%clk 0:01:46]} 21. Rfc1
{[%clk 0:01:59.7]} 21... Nd5 {[%clk 0:01:35.6]} 22. Qf3 {[%clk 0:01:58.6]} 22...
Qd8 {[%clk 0:01:26]} 23. Ne4 {[%clk 0:01:56.6]} 23... Qe7 {[%clk 0:01:13.9]} 24.
Rc4 {[%clk 0:01:54.1]} 24... a5 {[%clk 0:00:59.8]} 25. Rac1 {[%clk 0:01:53.6]}
25... Rfc8 {[%clk 0:00:59.6]} 26. a4 {[%clk 0:01:45.2]} 26... Nb6 {[%clk
0:00:56.9]} 27. Nf6+ {[%clk 0:01:43.8]} 27... Kd8 {[%clk 0:00:52]} 28. Rxc6
{[%clk 0:01:44]} 28... Rxc6 {[%clk 0:00:45.9]} 29. Rxc6 {[%clk 0:01:42.7]} 29...
Rb8 {[%clk 0:00:41.3]} 30. Rd6+ {[%clk 0:01:38.9]} 30... Kc8 {[%clk 0:00:38]}
31. Qc6+ {[%clk 0:01:36]} 31... Qc7 {[%clk 0:00:37.6]} 32. Rd8+ {[%clk
0:01:33.9]} 1-0

[Event "Early-Titled-Tuesday-Blitz-November-28-2023"]
[Site "Chess.com"]
[Date "2023.11.28"]
[Round "4"]
[White "IsaqueGoncalvesSanto"]
[Black "ljuks68"]
[Result "0-1"]
[WhiteElo "1910"]
[BlackElo "2428"]
[TimeControl "180+1"]
[EndTime "8:37:27 PST"]
[Termination "ljuks68 won by resignation"]

1. d4 {[%clk 0:03:00.9]} 1... d5 {[%clk 0:03:00.3]} 2. c4 {[%clk 0:02:57.8]}
2... c6 {[%clk 0:03:00.1]} 3. Nc3 {[%clk 0:02:57.3]} 3... Nf6 {[%clk 0:02:59.6]}
4. Nf3 {[%clk 0:02:56.1]} 4... dxc4 {[%clk 0:02:59.9]} 5. a4 {[%clk 0:02:54.3]}
5... Bf5 {[%clk 0:02:59.3]} 6. Ne5 {[%clk 0:02:52.4]} 6... Na6 {[%clk
0:02:59.2]} 7. f3 {[%clk 0:02:38.7]} 7... Nd7 {[%clk 0:02:58.2]} 8. Nxc4 {[%clk
0:02:32.2]} 8... e5 {[%clk 0:02:57.4]} 9. dxe5 {[%clk 0:02:28.1]} 9... Qh4+
{[%clk 0:02:57]} 10. g3 {[%clk 0:02:18.6]} 10... Qxc4 {[%clk 0:02:56.7]} 11. e4
{[%clk 0:02:14.1]} 11... Qe6 {[%clk 0:02:52.4]} 12. exf5 {[%clk 0:02:10]} 12...
Qxe5+ {[%clk 0:02:52.5]} 13. Qe2 {[%clk 0:02:01.3]} 13... Nb4 {[%clk 0:02:47.4]}
14. Qxe5+ {[%clk 0:01:26]} 14... Nxe5 {[%clk 0:02:46.6]} 15. Kf2 {[%clk
0:01:22]} 15... Bc5+ {[%clk 0:02:43.1]} 16. Kg2 {[%clk 0:01:20]} 16... O-O-O
{[%clk 0:02:30.6]} 17. Bf4 {[%clk 0:01:18.6]} 17... Ned3 {[%clk 0:02:20.9]} 18.
Bc1 {[%clk 0:00:55.9]} 18... Nxc1 {[%clk 0:02:16.6]} 19. Rxc1 {[%clk 0:00:55.2]}
19... Rd2+ {[%clk 0:01:49.1]} 20. Ne2 {[%clk 0:00:54.2]} 20... Bb6 {[%clk
0:01:33.5]} 21. b3 {[%clk 0:00:36.6]} 21... Re8 {[%clk 0:01:31.5]} 22. Rc4
{[%clk 0:00:33.4]} 22... Rexe2+ {[%clk 0:01:24.6]} 23. Bxe2 {[%clk 0:00:32.9]}
23... Rxe2+ {[%clk 0:01:25.2]} 24. Kf1 {[%clk 0:00:31.9]} 24... Rf2+ {[%clk
0:01:25.2]} 25. Ke1 {[%clk 0:00:31.8]} 25... Nd3+ {[%clk 0:01:24.8]} 26. Kd1
{[%clk 0:00:29.1]} 26... Be3 {[%clk 0:01:23.1]} 27. Rc2 {[%clk 0:00:24.3]} 27...
Nb2+ {[%clk 0:01:22.2]} 28. Ke1 {[%clk 0:00:23.5]} 28... Rxc2 {[%clk 0:01:21.7]}
0-1

[Event "Early-Titled-Tuesday-Blitz-November-28-2023"]
[Site "Chess.com"]
[Date "2023.11.28"]
[Round "4"]
[White "Hovik_Hayrapetyan"]
[Black "Maxfan2008"]
[Result "1-0"]
[WhiteElo "2779"]
[BlackElo "2545"]
[TimeControl "180+1"]
[EndTime "8:37:30 PST"]
[Termination "Hovik_Hayrapetyan won by checkmate"]

1. d4 {[%clk 0:03:00.9]} 1... d5 {[%clk 0:02:59.4]} 2. c4 {[%clk 0:03:00.3]}
2... c6 {[%clk 0:03:00]} 3. Nf3 {[%clk 0:03:00.3]} 3... Nf6 {[%clk 0:03:00.6]}
4. Nc3 {[%clk 0:03:00]} 4... e6 {[%clk 0:02:59.7]} 5. e3 {[%clk 0:03:00]} 5...
Nbd7 {[%clk 0:02:59.7]} 6. Bd3 {[%clk 0:03:00.4]} 6... dxc4 {[%clk 0:03:00.2]}
7. Bxc4 {[%clk 0:03:01.3]} 7... b5 {[%clk 0:03:00.6]} 8. Bd3 {[%clk 0:03:01.9]}
8... Bb7 {[%clk 0:02:57]} 9. e4 {[%clk 0:03:01.1]} 9... b4 {[%clk 0:02:56.3]}
10. Na4 {[%clk 0:03:00.1]} 10... c5 {[%clk 0:02:56.4]} 11. e5 {[%clk 0:03:00.4]}
11... Nd5 {[%clk 0:02:55.8]} 12. O-O {[%clk 0:03:00.9]} 12... cxd4 {[%clk
0:02:55.7]} 13. Nxd4 {[%clk 0:03:01.8]} 13... a6 {[%clk 0:02:46.5]} 14. Re1
{[%clk 0:02:59.3]} 14... g6 {[%clk 0:02:31.8]} 15. Qg4 {[%clk 0:02:26.2]} 15...
Bg7 {[%clk 0:02:17]} 16. Bg5 {[%clk 0:02:25.4]} 16... Ne7 {[%clk 0:01:48.6]} 17.
Nxe6 {[%clk 0:02:05.4]} 17... fxe6 {[%clk 0:01:47.1]} 18. Qxe6 {[%clk
0:02:06.3]} 18... Nf8 {[%clk 0:01:38.4]} 19. Qh3 {[%clk 0:02:04.4]} 19... Qa5
{[%clk 0:01:28.3]} 20. Rac1 {[%clk 0:01:48]} 20... Qxa4 {[%clk 0:00:23]} 21. Rc7
{[%clk 0:01:45.6]} 21... Nd7 {[%clk 0:00:20.4]} 22. Qe6 {[%clk 0:01:40.2]} 22...
Kd8 {[%clk 0:00:07.2]} 23. Rec1 {[%clk 0:01:24.7]} 23... Re8 {[%clk 0:00:06.4]}
24. Rxd7+ {[%clk 0:01:24.7]} 24... Qxd7 {[%clk 0:00:05.6]} 25. Qb6+ {[%clk
0:01:25.6]} 25... Qc7 {[%clk 0:00:05.8]} 26. Qxc7# {[%clk 0:01:26.5]} 1-0

[Event "Early-Titled-Tuesday-Blitz-November-28-2023"]
[Site "Chess.com"]
[Date "2023.11.28"]
[Round "4"]
[White "SayonaraPonytail"]
[Black "Gabix_94"]
[Result "0-1"]
[WhiteElo "2538"]
[BlackElo "2757"]
[TimeControl "180+1"]
[EndTime "8:37:34 PST"]
[Termination "Gabix_94 won by resignation"]

1. e4 {[%clk 0:03:00.9]} 1... e5 {[%clk 0:02:59.8]} 2. Nf3 {[%clk 0:03:00.8]}
2... d6 {[%clk 0:03:00.2]} 3. d4 {[%clk 0:02:58.9]} 3... exd4 {[%clk 0:03:00.7]}
4. Nxd4 {[%clk 0:02:59.1]} 4... Nf6 {[%clk 0:03:01.2]} 5. Nc3 {[%clk 0:02:59.1]}
5... Be7 {[%clk 0:03:01.1]} 6. Be2 {[%clk 0:02:59.3]} 6... O-O {[%clk
0:03:01.3]} 7. O-O {[%clk 0:02:59.5]} 7... Re8 {[%clk 0:03:02]} 8. f4 {[%clk
0:02:55.2]} 8... Bf8 {[%clk 0:03:01.8]} 9. Bf3 {[%clk 0:02:55.4]} 9... c6 {[%clk
0:03:00.9]} 10. Re1 {[%clk 0:02:46.8]} 10... Nbd7 {[%clk 0:02:59.5]} 11. Be3
{[%clk 0:02:40.9]} 11... Qc7 {[%clk 0:02:58.2]} 12. h3 {[%clk 0:02:37.2]} 12...
a5 {[%clk 0:02:47.9]} 13. a4 {[%clk 0:02:35.2]} 13... Nc5 {[%clk 0:02:41.8]} 14.
Bf2 {[%clk 0:02:35.1]} 14... Ne6 {[%clk 0:02:35.6]} 15. Qd2 {[%clk 0:02:29.4]}
15... Nxd4 {[%clk 0:02:25.6]} 16. Bxd4 {[%clk 0:02:30.3]} 16... Be6 {[%clk
0:02:25.9]} 17. f5 {[%clk 0:02:18.3]} 17... Bc4 {[%clk 0:02:22.9]} 18. b3 {[%clk
0:02:15.4]} 18... Ba6 {[%clk 0:02:21.5]} 19. Bxf6 {[%clk 0:01:55.4]} 19... gxf6
{[%clk 0:02:22.4]} 20. Rad1 {[%clk 0:01:52.9]} 20... Rad8 {[%clk 0:02:20.3]} 21.
Qf4 {[%clk 0:01:52.4]} 21... Re5 {[%clk 0:02:08.9]} 22. Re3 {[%clk 0:01:46]}
22... Kh8 {[%clk 0:02:07.9]} 23. Be2 {[%clk 0:01:42.6]} 23... Bxe2 {[%clk
0:01:59.4]} 24. Nxe2 {[%clk 0:01:43.5]} 24... d5 {[%clk 0:01:59.9]} 25. Ng3
{[%clk 0:01:02.7]} 25... Bc5 {[%clk 0:01:57.1]} 26. Kh1 {[%clk 0:01:01.3]} 26...
Bxe3 {[%clk 0:01:53.7]} 27. Qxe3 {[%clk 0:01:02.2]} 27... dxe4 {[%clk
0:01:53.5]} 28. Rf1 {[%clk 0:00:57.7]} 28... Qd6 {[%clk 0:01:50.2]} 29. Qh6
{[%clk 0:00:53]} 29... Rg8 {[%clk 0:01:36.4]} 30. Nh5 {[%clk 0:00:52.8]} 30...
e3 {[%clk 0:01:25.3]} 31. Qxf6+ {[%clk 0:00:31.8]} 31... Qxf6 {[%clk 0:01:23.7]}
32. Nxf6 {[%clk 0:00:32.7]} 32... e2 {[%clk 0:01:23.1]} 33. Re1 {[%clk
0:00:32.1]} 33... Rd8 {[%clk 0:01:22.5]} 34. Kg1 {[%clk 0:00:29.7]} 34... Rd1
{[%clk 0:01:22.6]} 0-1

[Event "Early-Titled-Tuesday-Blitz-November-28-2023"]
[Site "Chess.com"]
[Date "2023.11.28"]
[Round "4"]
[White "JoliyRoger"]
[Black "LeoWin2012"]
[Result "1-0"]
[WhiteElo "2503"]
[BlackElo "2272"]
[TimeControl "180+1"]
[EndTime "8:37:34 PST"]
[Termination "JoliyRoger won by checkmate"]

1. d4 {[%clk 0:02:54.5]} 1... g6 {[%clk 0:03:00.9]} 2. c4 {[%clk 0:02:54.8]}
2... Bg7 {[%clk 0:02:58.8]} 3. e4 {[%clk 0:02:54.9]} 3... d6 {[%clk 0:02:56.2]}
4. Nc3 {[%clk 0:02:54.2]} 4... Nf6 {[%clk 0:02:55.7]} 5. Nf3 {[%clk 0:02:53.1]}
5... O-O {[%clk 0:02:55.2]} 6. h3 {[%clk 0:02:53.7]} 6... Nbd7 {[%clk
0:02:54.2]} 7. Bg5 {[%clk 0:02:52.4]} 7... c5 {[%clk 0:02:53.5]} 8. d5 {[%clk
0:02:52.6]} 8... Qa5 {[%clk 0:02:52.1]} 9. Bd3 {[%clk 0:02:50.6]} 9... Re8
{[%clk 0:02:43.6]} 10. O-O {[%clk 0:02:49.9]} 10... h6 {[%clk 0:02:34.7]} 11.
Be3 {[%clk 0:02:42.3]} 11... Nh5 {[%clk 0:02:31]} 12. Qd2 {[%clk 0:02:41.6]}
12... Kh7 {[%clk 0:02:28.7]} 13. Rae1 {[%clk 0:02:40.2]} 13... a6 {[%clk
0:02:20.9]} 14. a4 {[%clk 0:02:38.7]} 14... Ndf6 {[%clk 0:02:07.2]} 15. Qc2
{[%clk 0:02:21.7]} 15... Nd7 {[%clk 0:01:56.1]} 16. Re2 {[%clk 0:02:18.1]} 16...
Ne5 {[%clk 0:01:54]} 17. Nxe5 {[%clk 0:02:16.8]} 17... Bxe5 {[%clk 0:01:54.9]}
18. f4 {[%clk 0:02:16.7]} 18... Bd4 {[%clk 0:01:47.5]} 19. Rf3 {[%clk
0:02:15.6]} 19... Bd7 {[%clk 0:01:38.9]} 20. e5 {[%clk 0:01:59.2]} 20... dxe5
{[%clk 0:01:30.8]} 21. fxe5 {[%clk 0:01:58.9]} 21... Kg7 {[%clk 0:01:16.4]} 22.
e6 {[%clk 0:01:44.1]} 22... fxe6 {[%clk 0:01:06.2]} 23. Bxg6 {[%clk 0:01:44.5]}
23... Nf6 {[%clk 0:00:59.7]} 24. Rg3 {[%clk 0:01:30.1]} 24... Kh8 {[%clk
0:00:58.7]} 25. Bxe8 {[%clk 0:01:27.1]} 25... Bxe8 {[%clk 0:00:44.3]} 26. Bxd4
{[%clk 0:01:21.5]} 26... cxd4 {[%clk 0:00:43.9]} 27. Ne4 {[%clk 0:01:22.1]}
27... Qxa4 {[%clk 0:00:29.5]} 28. Nxf6 {[%clk 0:01:12.8]} 28... Qxc2 {[%clk
0:00:27.9]} 29. Rg8# {[%clk 0:01:11.9]} 1-0